bitfinex/quotes_ETHUSD_20241003
["timestamp","ask_amount","ask_price","bid_price","bid_amount"]
[1727949158419,5.22858249,2355.4,2355.0,4.24623]
[1727949158816,4.24547,2355.5,2355.1,4.24609]
[1727949159159,4.24547,2355.5,2355.1,8.49206]
[1727949159354,4.24547,2355.5,2355.1,4.24597]
[1727949161037,5.22838849,2355.5,2355.1,8.49198]
[1727949161241,0.98291849,2355.5,2355.1,4.24597]
[1727949161415,4.24521,2355.6,2355.2,4.24584]
[1727949163155,4.24521,2355.6,2355.1,4.24597]
[1727949163156,4.24545,2355.5,2355.1,4.24597]
[1727949163367,4.24556,2355.4,2355.0,4.2462]
[1727949164266,0.98289249,2355.5,2355.0,4.24613]
[1727949164412,5.22830249,2355.5,2355.1,4.24603]
[1727949165123,0.98289249,2355.5,2355.2,4.24586]
[1727949165452,5.58387491,2355.6,2355.2,4.24586]
[1727949165812,5.58387491,2355.6,2355.0,4.24623]
[1727949166055,4.24539,2355.5,2355.1,4.24606]
[1727949166255,4.9818645,2355.5,2355.1,4.24606]
[1727949168047,4.9818645,2355.5,2355.2,4.2459]
[1727949168281,4.24539,2355.5,2355.2,4.2459]
[1727949169253,4.24522,2355.6,2355.2,4.2459]
[1727949169453,5.58377491,2355.7,2355.3,4.24573]
[1727949169651,5.58377491,2355.7,2355.2,4.2459]
[1727949169850,4.24521,2355.6,2355.2,4.24584]
[1727949170381,4.24538,2355.5,2355.1,4.24602]
[1727949170686,0.43337324,2355.5,2355.2,4.24583]
[1727949172097,0.43337324,2355.5,2355.3,4.24574]
[1727949172267,4.24522,2355.6,2355.2,4.24583]
[1727949173042,4.24541,2355.5,2355.1,4.24599]
[1727949173659,4.24541,2355.5,2355.1,8.49198]
[1727949173845,4.24541,2355.5,2355.1,4.24599]
[1727949174775,4.24541,2355.5,2355.2,4.24592]
[1727949174972,5.58368491,2355.7,2355.3,4.24571]
[1727949175179,1.33866491,2355.7,2355.5,4.24526]
[1727949175391,1.78087013,2355.8,2355.4,4.24542]
[1727949175392,5.58350491,2355.8,2355.4,4.24542]
[1727949175586,1.78087013,2356.0,2355.5,4.24536]
[1727949175587,4.2447,2355.9,2355.5,4.24536]
[1727949175960,4.2447,2355.9,2355.6,4.2452]
[1727949176178,4.2447,2355.9,2355.5,4.24536]
[1727949176911,8.48946,2355.9,2355.5,4.24536]
[1727949177108,12.15871791,2356.1,2355.1,11.30408994]
[1727949177397,4.24451,2356.0,2355.6,4.24506]
[1727949177604,10.820053,2356.1,2355.6,4.24506]
[1727949177605,10.820053,2356.1,2355.7,4.245]
[1727949178268,10.820053,2356.1,2355.1,7.24603]
[1727949178269,4.24466,2355.9,2355.4,4.24543]
[1727949178466,4.24456,2356.0,2355.6,4.24513]
[1727949178758,4.24456,2356.0,2355.5,4.24521]
[1727949178759,4.24477,2355.9,2355.5,4.24521]
[1727949179299,8.4896,2355.9,2355.5,4.24521]
[1727949179804,4.24477,2355.9,2355.5,4.24521]
[1727949180103,10.820083,2356.1,2355.2,3.0]
[1727949180264,4.24444,2356.1,2355.7,4.24493]
[1727949180662,1.33866491,2356.3,2355.7,4.2449]
[1727949180895,5.58243491,2356.4,2355.6,4.24516]
[1727949181079,4.24445,2356.1,2355.7,4.24499]
[1727949184516,4.24412,2356.2,2355.7,4.24487]
[1727949184723,4.24412,2356.2,2355.8,4.24474]
[1727949185220,4.24412,2356.2,2355.8,4.24479]
[1727949187123,4.24432,2356.1,2355.7,4.969457]
[1727949187301,4.24432,2356.1,2355.7,4.24497]
[1727949187825,4.24421,2356.2,2355.8,4.24483]
[1727949188183,4.24431,2356.1,2355.7,4.24497]
[1727949188681,4.24449,2356.0,2355.7,4.24497]
[1727949189400,4.24466,2355.9,2355.4,4.24551]
[1727949189642,0.84888,2356.0,2355.5,4.24522]
[1727949189643,4.24456,2356.0,2355.5,4.24522]
[1727949189798,4.2444,2356.1,2355.6,0.424522]
[1727949190001,4.24449,2356.0,2355.5,4.24527]
[1727949190224,4.24449,2356.0,2355.6,0.424527]
[1727949190501,4.24449,2356.0,2355.6,4.24519]
[1727949192333,4.05805994,2355.9,2354.8,3.0]
[1727949192529,4.24508,2355.7,2355.3,4.24563]
[1727949193341,4.24508,2355.7,2355.3,8.49128]
[1727949193900,4.24508,2355.7,2355.3,4.24563]
[1727949194345,4.24488,2355.8,2355.3,4.24561]
[1727949194553,4.24529,2355.6,2355.1,4.24592]
[1727949195344,4.24529,2355.6,2355.2,4.2459]
[1727949198013,5.58373491,2355.7,2355.3,4.24563]
[1727949198345,5.58355491,2355.8,2355.4,4.24549]
[1727949199055,5.58370491,2355.7,2355.3,4.2457]
[1727949199863,1.33866491,2355.7,2355.5,4.05805994]
[1727949200146,1.33866491,2356.4,2356.1,4.2443]
[1727949200352,1.33866491,2356.7,2356.2,4.66841]
[1727949200510,1.33866491,2356.7,2356.3,4.24393]
[1727949201012,1.33866491,2356.7,2356.2,4.24398]
[1727949201549,1.33866491,2357.0,2356.8,4.24304]
[1727949201857,2.66933798,2357.5,2357.3,4.24214]
[1727949201858,1.33866491,2357.5,2357.3,4.24214]
[1727949202164,1.33866491,2357.9,2357.2,4.24225]
[1727949202307,2.22444831,2358.1,2357.1,4.24232]
[1727949202308,5.39672485,2358.1,2357.1,4.24232]
[1727949202503,5.39672485,2358.1,2356.9,4.2428]
[1727949202504,4.05805994,2357.7,2356.9,4.2428]
[1727949202708,4.05805994,2357.7,2356.9,8.48554]
[1727949202953,8.29986994,2357.5,2356.8,3.0]
[1727949203247,8.29986994,2357.5,2356.8,7.24301]
[1727949203248,4.05805994,2357.5,2356.8,7.24301]
[1727949203549,8.29988994,2357.5,2356.8,3.0]
[1727949203721,9.34671762,2357.5,2356.8,3.0]
[1727949203923,9.34671762,2357.5,2356.7,8.48627]
[1727949204244,5.10488762,2357.5,2356.7,4.24309]
[1727949204462,5.10488762,2357.5,2356.9,4.24281]
[1727949205011,9.34668762,2357.5,2356.7,8.48617]
[1727949205214,9.34668762,2357.5,2356.7,4.24308]
[1727949205415,1.00304495,2357.4,2356.7,8.48617]
[1727949205652,1.00304495,2357.4,2356.8,4.24302]
[1727949206159,5.24503495,2357.4,2356.7,4.24308]
[1727949206459,4.05805994,2357.3,2356.8,4.2429]
[1727949206657,4.88799193,2357.3,2356.8,4.2429]
[1727949206962,0.82993199,2357.3,2356.9,4.24274]
[1727949207118,1.00304495,2357.4,2356.9,4.24274]
[1727949207938,1.00304495,2357.4,2356.9,8.48549]
[1727949208139,1.00304495,2357.4,2357.0,4.24266]
[1727949208345,3.0,2357.6,2357.1,4.24237]
[1727949208544,8.29947994,2357.7,2357.1,4.24237]
[1727949208545,4.05805994,2357.7,2357.2,4.2422]
[1727949208736,1.25408099,2357.6,2357.2,4.2422]
[1727949209123,11.29911994,2357.9,2357.3,4.24213]
[1727949209318,11.29911994,2357.9,2357.3,8.48417]
[1727949209556,3.0,2357.7,2357.3,4.24204]
[1727949210856,4.05805994,2357.5,2356.5,4.24357]
[1727949211069,8.30023994,2357.3,2356.6,4.24326]
[1727949211218,4.24243,2357.2,2356.6,4.24326]
[1727949211424,8.30023994,2357.3,2356.6,4.24326]
[1727949211425,4.24251,2357.1,2356.6,4.24326]
[1727949211656,4.05805994,2357.3,2356.5,0.3]
[1727949211877,8.30026994,2357.3,2356.7,4.24312]
[1727949212059,9.13029693,2357.3,2356.7,4.24312]
[1727949212365,0.83002699,2357.3,2356.9,4.24285]
[1727949212866,4.24215,2357.3,2356.8,4.24303]
[1727949214144,4.24209,2357.4,2356.9,4.24272]
[1727949215275,9.78746523,2357.5,2357.0,4.24264]
[1727949215444,5.72940529,2357.5,2357.0,4.24264]
[1727949215783,4.24168,2357.6,2357.2,4.24221]
[1727949217088,8.48339,2357.6,2357.1,4.24249]
[1727949217396,4.24168,2357.6,2357.1,4.2424]
[1727949217749,8.48337,2357.6,2357.1,4.2424]
[1727949218149,4.24168,2357.6,2357.1,8.48477]
[1727949218340,4.24172,2357.6,2357.1,4.66661]
[1727949218565,4.24172,2357.6,2357.1,8.90897]
[1727949218766,4.24172,2357.6,2357.2,4.24229]
[1727949218957,4.24144,2357.7,2357.3,4.2421]
[1727949219148,4.24161,2357.6,2357.2,0.890897]
[1727949219349,4.24179,2357.5,2357.2,0.890897]
[1727949219553,4.24161,2357.6,2357.1,8.48472]
[1727949220550,4.05805994,2357.3,2356.9,4.24275]
[1727949220746,4.24212,2357.4,2357.0,4.24267]
[1727949221284,8.48417,2357.4,2357.0,4.24267]
[1727949221485,8.4841,2357.4,2356.8,4.24302]
[1727949221782,8.4841,2357.4,2356.9,4.24285]
[1727949221783,8.30020994,2357.3,2356.9,4.24285]
[1727949221988,4.24215,2357.3,2356.9,4.24285]
[1727949222487,4.2424,2357.2,2356.8,3.0]
[1727949222640,4.24234,2357.2,2356.8,3.0]
[1727949222847,8.48479,2357.2,2356.8,3.0]
[1727949223247,8.48479,2357.2,2356.7,4.967421]
[1727949223446,4.24234,2357.2,2356.7,4.967421]
[1727949223856,4.05805994,2357.3,2356.5,3.0]
[1727949224208,4.05805994,2357.3,2356.2,0.424398]
[1727949224209,4.05805994,2356.9,2356.2,0.424398]
[1727949224347,4.24216,2357.3,2356.2,4.24411]
[1727949224348,4.24341,2356.6,2356.2,4.24411]
[1727949224553,4.24362,2356.5,2356.1,4.24427]
[1727949225046,4.24323,2356.7,2356.3,4.24381]
[1727949225247,4.24323,2356.7,2355.9,4.24465]
[1727949225248,4.24365,2356.5,2356.0,4.24433]
[1727949225447,4.05805994,2356.3,2355.2,4.67329199]
[1727949225700,4.24432,2356.1,2355.6,4.24513]
[1727949225993,4.24432,2356.1,2355.6,5.094175]
[1727949225994,8.30257994,2356.0,2355.6,5.094175]
[1727949226144,4.24432,2356.1,2355.7,4.245]
[1727949226348,4.24441,2356.1,2355.4,4.2454]
[1727949226548,4.24441,2356.1,2355.6,4.24517]
[1727949226793,8.30219994,2356.2,2355.7,3.0]
[1727949227167,8.30219994,2356.2,2355.7,7.2449]
[1727949227369,4.24414,2356.2,2355.8,1.148998]
[1727949227581,8.4884,2356.2,2355.8,1.148998]
[1727949228072,4.24414,2356.2,2355.8,5.393828]
[1727949228275,8.30191994,2356.4,2355.9,4.24459]
[1727949228479,8.30191994,2356.4,2356.0,4.24447]
[1727949228480,4.24385,2356.4,2356.0,4.24447]
[1727949228691,4.24385,2356.4,2356.0,8.48887]
[1727949229002,4.24359,2356.5,2356.1,4.24418]
[1727949229301,4.24341,2356.6,2356.2,4.24409]
[1727949230311,4.24298,2356.9,2355.9,1.2638728]
[1727949230493,4.24322,2356.7,2356.3,4.24384]
[1727949231399,4.2434,2356.6,2356.1,7.2442]
[1727949231717,4.2434,2356.6,2356.0,4.77655327]
[1727949231718,4.24371,2356.5,2356.0,0.53219327]
[1727949232215,4.24406,2356.3,2355.7,7.24492]
[1727949232511,4.24406,2356.3,2355.2,4.05805994]
[1727949232512,4.24453,2356.0,2355.6,7.24512]
[1727949232680,4.2444,2356.1,2355.6,7.24512]
[1727949232868,8.4888,2356.1,2355.7,1.149038]
[1727949233064,4.24453,2356.0,2355.7,1.149038]
[1727949233272,4.24473,2355.9,2355.3,4.65142599]
[1727949233473,4.24473,2355.9,2355.5,4.24537]
[1727949233902,4.24446,2356.1,2355.3,0.40580599]
[1727949234116,4.24439,2356.1,2355.6,4.24511]
[1727949234610,4.24449,2356.0,2355.6,4.24511]
[1727949234969,4.24469,2355.9,2355.5,4.24531]
[1727949235286,4.24469,2355.9,2355.5,8.4906]
[1727949235927,4.24469,2355.9,2355.5,4.24529]
[1727949236097,8.48877,2356.1,2355.6,4.24509]
[1727949236268,4.24448,2356.0,2355.6,4.24509]
[1727949237113,4.24448,2356.0,2355.5,4.24535]
[1727949237407,8.4891,2356.0,2355.6,0.849075]
[1727949237568,8.4891,2356.0,2355.5,4.24535]
[1727949238266,4.24468,2355.9,2355.5,4.24535]
[1727949238417,4.24496,2355.8,2355.3,4.24566]
[1727949238634,4.24496,2355.8,2355.4,0.849158]
[1727949238778,4.24496,2355.8,2355.4,4.24556]
[1727949239312,4.24466,2355.9,2355.5,4.24535]
[1727949239713,4.2449,2355.8,2355.4,4.24552]
[1727949239875,4.24412,2356.2,2355.4,5.094651]
[1727949240077,4.24473,2355.9,2355.5,4.24535]
[1727949242129,4.24491,2355.8,2355.4,4.24544]
[1727949242305,4.24458,2356.0,2355.5,4.24536]
[1727949242612,6.575643,2356.3,2354.9,3.0]
[1727949242613,4.24416,2356.2,2355.7,4.2449]
[1727949242815,4.24438,2356.1,2355.8,0.849001]
[1727949243025,4.24416,2356.2,2355.8,4.24484]
[1727949244122,4.24416,2356.2,2355.6,4.24516]
[1727949244320,4.24431,2356.1,2355.7,4.24494]
[1727949244474,4.24387,2356.4,2355.8,5.09374]
[1727949244821,4.24405,2356.3,2355.9,4.24453]
[1727949245803,4.24372,2356.5,2356.0,4.24444]
[1727949245804,4.24376,2356.4,2356.0,4.24444]
[1727949246119,4.24376,2356.4,2356.0,5.09606921]
[1727949246472,6.575643,2356.8,2356.0,0.85162921]
[1727949246473,4.24411,2356.3,2356.0,0.85162921]
[1727949246699,4.24423,2356.2,2355.8,4.24482]
[1727949246919,4.24423,2356.2,2355.9,0.848972]
[1727949247277,4.2443,2356.1,2355.5,7.24523]
[1727949247979,4.2443,2356.1,2355.6,4.24506]
[1727949248321,4.2443,2356.1,2355.7,4.24492]
[1727949248523,4.2443,2356.1,2355.8,0.848998]
[1727949250185,4.24474,2355.9,2355.5,7.24537]
[1727949250386,4.2446,2356.0,2355.6,4.24519]
[1727949250599,4.2446,2356.0,2355.6,5.394246]
[1727949250824,4.24469,2355.9,2355.6,1.149056]
[1727949251685,4.2443,2356.2,2355.5,4.24529]
[1727949251885,4.2443,2356.2,2355.6,4.2451]
[1727949251886,4.24455,2356.0,2355.6,4.2451]
[1727949252326,4.24432,2356.1,2355.7,4.24501]
[1727949252492,4.24449,2356.0,2355.6,4.2451]
[1727949252683,4.24449,2356.0,2355.6,5.094152]
[1727949253093,4.24432,2356.1,2355.7,4.24494]
[1727949253339,4.24432,2356.1,2355.8,4.24484]
[1727949253824,4.24415,2356.2,2355.8,4.24484]
[1727949254234,4.24415,2356.2,2355.4,4.2455]
[1727949254235,10.819393,2356.5,2356.0,4.24432]
[1727949254438,4.24377,2356.4,2356.0,4.24432]
[1727949254759,4.24407,2356.3,2355.9,4.24466]
[1727949254979,4.24419,2356.2,2355.8,4.24467]
[1727949255326,4.24419,2356.2,2355.8,5.093639]
[1727949255525,4.244,2356.3,2356.0,4.24447]
[1727949256636,15.062893,2356.5,2356.1,4.2442]
[1727949256840,4.24286,2357.0,2356.6,4.24339]
[1727949257162,4.24286,2357.0,2356.3,4.24387]
[1727949257163,4.24322,2356.7,2356.3,4.24387]
[1727949257340,4.05613457,2356.9,2356.3,4.24387]
[1727949257541,4.24311,2356.8,2356.3,4.24383]
[1727949257740,4.24311,2356.8,2356.4,4.668103]
[1727949258172,4.24311,2356.8,2356.4,8.911693]
[1727949258378,8.29903457,2356.9,2356.5,4.24356]
[1727949260363,4.24293,2356.9,2356.5,4.24357]
[1727949261560,4.24293,2356.9,2356.4,0.424383]
[1727949261897,4.2433,2356.7,2356.3,4.24381]
[1727949262105,4.24309,2356.8,2356.4,4.24367]
[1727949262106,4.24307,2356.8,2356.4,4.24367]
[1727949262306,1.33866491,2357.2,2356.0,4.24447]
[1727949262307,8.29952457,2356.7,2356.2,4.24411]
[1727949262512,5.07349246,2356.6,2356.2,4.24411]
[1727949262676,4.24354,2356.6,2356.2,4.24411]
[1727949262852,4.24364,2356.5,2356.1,4.24427]
[1727949264195,4.24344,2356.6,2356.2,4.24412]
[1727949264404,8.48697,2356.6,2356.2,4.24412]
[1727949264703,4.24344,2356.6,2356.2,4.24412]
[1727949266070,8.48701,2356.6,2356.2,4.24412]
[1727949266299,8.29940457,2356.7,2356.2,4.24397]
[1727949266458,4.24348,2356.6,2356.2,4.24397]
[1727949266666,8.29939457,2356.7,2356.2,4.24397]
[1727949266873,9.63805948,2356.7,2356.3,4.24384]
[1727949267080,9.63805948,2356.7,2356.2,4.24397]
[1727949267081,4.24349,2356.6,2356.2,4.24397]
[1727949268185,9.63805948,2356.7,2356.3,4.24391]
[1727949268598,9.63805948,2356.7,2356.4,4.24375]
[1727949268800,4.24349,2356.6,2356.2,4.24406]
[1727949269297,5.58215491,2356.6,2356.2,4.24406]
[1727949269458,4.24349,2356.6,2356.2,4.24406]
[1727949269664,1.33866491,2356.6,2356.3,4.24379]
[1727949269868,1.33866491,2356.7,2355.9,4.2446]
[1727949270104,5.58208491,2356.6,2356.2,4.2441]
[1727949270307,1.33866491,2356.6,2356.3,4.24394]
[1727949270617,4.05613457,2356.5,2356.1,4.24422]
[1727949270773,8.30015457,2356.3,2355.9,4.24461]
[1727949271170,4.05613457,2356.3,2355.8,4.24469]
[1727949271382,5.58249491,2356.4,2356.0,4.24431]
[1727949271607,1.33866491,2356.4,2356.0,4.24431]
[1727949271775,5.58239491,2356.5,2356.1,4.24421]
[1727949271987,1.33866491,2356.5,2356.2,4.24404]
[1727949272194,5.58210491,2356.6,2356.3,4.24393]
[1727949272918,5.58210491,2356.6,2356.1,5.093142]
[1727949273110,5.58210491,2356.6,2356.2,4.24408]
[1727949273111,4.24358,2356.5,2356.2,4.24408]
[1727949273580,1.33866491,2356.6,2356.2,8.48808]
[1727949273922,9.82535491,2356.7,2356.2,8.48808]
[1727949274220,5.58220491,2356.6,2356.2,4.244]
[1727949274424,4.24378,2356.4,2356.0,4.24432]
[1727949274576,4.24365,2356.5,2356.1,4.24429]
[1727949274774,8.48735,2356.5,2356.1,4.24429]
[1727949275003,4.24386,2356.4,2355.9,4.24463]
[1727949275178,4.24407,2356.3,2355.8,4.669269]
[1727949275379,4.24419,2356.2,2355.8,4.669269]
[1727949275685,4.24407,2356.3,2355.9,4.24457]
[1727949276052,4.24403,2356.3,2355.8,4.669179]
[1727949276235,4.24413,2356.2,2355.8,4.24471]
[1727949277943,4.24413,2356.2,2355.5,3.42455]
[1727949278271,5.39479948,2356.3,2355.7,4.24498]
[1727949278584,4.2442,2356.2,2355.8,4.24475]
[1727949278933,4.24433,2356.1,2355.7,4.24498]
[1727949279295,4.2442,2356.2,2355.8,4.24482]
[1727949279434,8.48846,2356.2,2355.8,4.24482]
[1727949279630,4.24439,2356.1,2355.7,4.24497]
[1727949279843,4.2442,2356.2,2355.8,4.24472]
[1727949280076,4.2442,2356.2,2355.8,5.093689]
[1727949280291,4.24432,2356.1,2355.8,0.848969]
[1727949280848,4.2442,2356.2,2355.8,5.093669]
[1727949280849,4.24415,2356.2,2355.8,5.093669]
[1727949281109,8.48843,2356.2,2355.8,5.093669]
[1727949281255,8.48843,2356.2,2355.8,4.2447]
[1727949281593,4.24415,2356.2,2355.8,4.2447]
[1727949282301,4.24448,2356.0,2355.6,4.2451]
[1727949282450,4.24448,2356.0,2355.6,4.24515]
[1727949282651,4.24448,2356.0,2355.5,4.24537]
[1727949282851,4.24448,2356.0,2355.3,4.24574]
[1727949282852,8.30128457,2355.7,2355.3,4.24574]
[1727949283077,8.30159457,2355.5,2355.0,4.24611]
[1727949283308,8.30159457,2355.5,2355.1,4.2461]
[1727949283449,8.30159457,2355.5,2355.0,4.24611]
[1727949283450,4.05613457,2355.3,2355.0,4.24627]
[1727949283652,8.30154457,2355.5,2355.0,4.24627]
[1727949283962,4.24557,2355.4,2355.0,4.24627]
[1727949285178,4.24624,2355.1,2354.6,4.24682]
[1727949285403,4.05613457,2354.9,2354.4,4.24719]
[1727949285595,4.05613457,2354.7,2354.2,4.24759]
[1727949285902,4.05613457,2354.7,2354.3,4.24754]
[1727949286991,8.30300457,2354.7,2354.3,4.24754]
[1727949288154,4.24707,2354.6,2354.1,4.24775]
[1727949288361,4.24707,2354.6,2354.2,4.24762]
[1727949288794,4.05613457,2354.5,2354.2,4.24762]
[1727949289296,4.05613457,2354.5,2354.0,4.24804]
[1727949289297,8.30331457,2354.5,2354.1,4.24778]
[1727949289602,8.30331457,2354.5,2354.0,8.49607]
[1727949289800,4.05613457,2354.3,2354.0,4.248]
[1727949290102,4.05613457,2354.3,2353.9,4.24823]
[1727949290301,4.24774,2354.2,2353.8,4.24827]
[1727949290460,4.05613457,2354.1,2353.8,4.24827]
[1727949290655,4.05613457,2354.1,2353.8,8.4966]
[1727949290972,4.05613457,2354.3,2353.9,4.24815]
[1727949291178,4.05613457,2354.3,2353.8,5.09793]
[1727949291179,8.30377457,2354.3,2353.8,9.34627]
[1727949291502,8.30377457,2354.3,2353.9,4.24824]
[1727949292007,4.24739,2354.4,2353.5,4.24896]
[1727949292008,4.24817,2354.0,2353.5,4.24884]
[1727949292162,4.2483,2353.9,2353.5,4.24884]
[1727949292700,8.30443457,2353.9,2353.5,4.24884]
[1727949292884,4.05613457,2353.9,2353.6,4.24878]
[1727949293414,4.05613457,2354.1,2353.7,4.24853]
[1727949293712,4.24783,2354.2,2353.8,4.24844]
[1727949293713,4.24781,2354.2,2353.8,4.24844]
[1727949294498,4.05613457,2354.3,2353.9,4.24823]
[1727949294926,8.30375457,2354.3,2353.9,4.24823]
[1727949295129,8.30375457,2354.3,2353.4,4.24916]
[1727949295299,9.55887903,2354.3,2353.9,4.24824]
[1727949295504,4.24762,2354.3,2353.9,4.24824]
[1727949295702,8.30375457,2354.3,2353.9,4.24824]
[1727949297135,8.30375457,2354.3,2353.9,4.24814]
[1727949297426,8.30375457,2354.3,2353.8,4.24836]
[1727949297738,8.30375457,2354.3,2353.8,4.673202]
[1727949297938,8.30375457,2354.3,2353.9,4.24826]
[1727949299118,4.24781,2354.2,2353.8,4.673202]
[1727949299424,4.24847,2353.8,2353.5,3.0]
[1727949299988,4.05613457,2353.9,2353.5,7.24889]
[1727949300227,4.24804,2354.1,2353.6,4.24878]
[1727949300228,4.2481,2354.0,2353.6,4.24878]
[1727949300438,4.05613457,2354.1,2353.6,1.149767]
[1727949300730,4.05613457,2354.1,2353.7,4.24845]
[1727949300902,4.24756,2354.3,2353.8,4.24827]
[1727949301232,5.097069,2354.3,2353.9,4.24819]
[1727949301385,8.30337457,2354.5,2353.9,4.24819]
[1727949301386,4.24749,2354.4,2353.9,4.24819]
[1727949301591,4.24755,2354.3,2353.9,4.24819]
[1727949301786,4.24755,2354.3,2353.9,5.097836]
[1727949302031,8.30368457,2354.3,2353.9,0.849646]
[1727949302228,8.30368457,2354.3,2353.8,4.24827]
[1727949302606,8.30368457,2354.3,2353.8,8.49657]
[1727949302815,8.30368457,2354.3,2353.8,4.24827]
[1727949303029,8.30368457,2354.3,2353.8,8.49663]
[1727949303344,4.24782,2354.2,2353.8,4.24827]
[1727949303644,4.05613457,2354.1,2353.8,4.24827]
[1727949303998,8.30369457,2354.3,2353.8,4.24827]
[1727949304247,4.24756,2354.3,2353.9,4.24817]
[1727949305150,4.05613457,2354.4,2353.8,4.24841]
[1727949305437,4.05613457,2354.4,2353.9,4.24825]
[1727949305642,4.24757,2354.3,2353.9,4.24825]
[1727949306081,4.24757,2354.3,2353.8,4.24841]
[1727949306082,4.05613457,2354.4,2353.6,0.424897]
[1727949306346,8.30356457,2354.4,2354.0,8.49598]
[1727949306641,4.24754,2354.3,2353.9,4.24822]
[1727949307707,12.55102457,2354.4,2353.9,4.24822]
[1727949308050,8.30356457,2354.4,2354.0,4.24807]
[1727949309424,8.30328457,2354.6,2354.2,4.24762]
[1727949309717,8.30328457,2354.6,2354.1,4.24788]
[1727949309909,4.24728,2354.5,2354.1,4.24788]
[1727949310305,8.49464,2354.5,2354.1,4.24788]
[1727949310731,4.24728,2354.5,2354.1,8.49571]
[1727949311008,4.24728,2354.5,2354.1,5.097401]
[1727949312047,4.24728,2354.5,2354.1,5.097421]
[1727949313450,4.24737,2354.4,2354.1,0.849571]
[1727949313880,4.24727,2354.5,2354.1,5.097451]
[1727949314488,4.24737,2354.4,2354.1,0.849571]
[1727949315478,4.24727,2354.5,2354.1,5.097471]
[1727949316485,4.24756,2354.3,2354.0,4.248]
[1727949316787,4.24781,2354.2,2353.8,4.24841]
[1727949316972,4.05613457,2354.0,2353.6,4.2487]
[1727949317178,8.30436457,2354.0,2353.5,4.24891]
[1727949317388,8.30428457,2354.0,2353.6,4.24877]
[1727949317969,4.05613457,2354.2,2353.7,4.2486]
[1727949318203,6.575643,2354.5,2353.4,4.05613457]
[1727949318507,4.05613457,2354.6,2354.1,4.2479]
[1727949318508,4.24738,2354.4,2354.1,4.2479]
[1727949318795,4.24708,2354.6,2354.2,4.24768]
[1727949319975,4.24708,2354.6,2354.2,5.097148]
[1727949320160,4.24708,2354.6,2354.2,8.49522]
[1727949320703,4.24719,2354.5,2354.2,4.24759]
[1727949320863,4.24703,2354.6,2354.2,4.24759]
[1727949321767,4.24683,2354.7,2354.2,4.24759]
[1727949322001,4.24683,2354.7,2354.3,4.672229]
[1727949322366,10.822393,2354.8,2354.4,4.24733]
[1727949322870,4.24675,2354.8,2354.4,4.24733]
[1727949323304,4.24655,2354.9,2354.5,4.24716]
[1727949323522,4.24655,2354.9,2354.6,0.849449]
[1727949323662,4.24629,2355.0,2354.4,4.24732]
[1727949323663,4.24672,2354.8,2354.4,4.24732]
[1727949323995,4.24672,2354.8,2354.4,4.24722]
[1727949324212,4.24648,2354.9,2354.5,4.24716]
[1727949324361,4.05613457,2355.0,2354.5,4.7143579]
[1727949324565,4.24612,2355.1,2354.7,4.24672]
[1727949324800,4.24596,2355.2,2354.7,5.14281079]
[1727949325111,4.24596,2355.2,2354.5,4.7143379]
[1727949325112,4.24645,2355.0,2354.5,4.7143379]
[1727949325270,4.24665,2354.8,2354.4,4.24719]
[1727949325979,4.24662,2354.9,2354.5,4.24717]
[1727949326183,8.30249457,2355.0,2354.5,4.24717]
[1727949326392,4.24636,2355.0,2354.5,8.49426]
[1727949326588,4.24636,2355.0,2354.6,4.24693]
[1727949326789,4.24546,2355.5,2354.7,0.03964666]
[1727949327111,4.2453,2355.6,2355.1,4.24601]
[1727949327306,4.24546,2355.5,2355.0,8.49241]
[1727949327619,4.24546,2355.5,2355.1,4.24608]
[1727949328109,4.24546,2355.5,2355.1,0.849227]
[1727949328470,4.24546,2355.5,2355.1,5.095237]
[1727949328695,8.30146457,2355.6,2355.1,0.849227]
[1727949328966,4.24546,2355.5,2355.1,0.849227]
[1727949329467,8.30136457,2355.6,2355.1,5.095217]
[1727949329900,12.54673457,2355.6,2355.1,5.095217]
[1727949330110,4.24613,2355.1,2354.6,3.0]
[1727949330289,4.05613457,2355.0,2354.6,4.24692]
[1727949330494,4.24648,2354.9,2354.5,4.24709]
[1727949330813,8.30247457,2355.0,2354.6,4.24698]
[1727949331398,4.05613457,2354.8,2354.6,4.24698]
[1727949333095,8.30247457,2355.0,2354.6,4.24698]
[1727949333299,9.69119152,2355.0,2354.6,4.24698]
[1727949335294,4.24665,2354.8,2354.4,8.49461]
[1727949335495,4.24665,2354.8,2354.4,4.24725]
[1727949336049,4.24683,2354.7,2354.3,4.24746]
[1727949336347,6.78351643,2355.0,2354.2,4.24755]
[1727949336348,4.24647,2354.9,2354.5,4.24709]
[1727949336492,8.49307,2354.9,2354.4,4.2472]
[1727949336691,4.24647,2354.9,2354.4,8.49444]
[1727949337131,4.24647,2354.9,2354.4,4.2472]
[1727949337338,4.24667,2354.8,2354.4,4.2472]
[1727949337520,5.81337996,2354.9,2354.5,4.24718]
[1727949337725,4.24654,2354.9,2354.5,4.24718]
[1727949339105,4.24654,2354.9,2354.4,4.24733]
[1727949339432,4.24654,2354.9,2354.4,8.49458]
[1727949339744,5.39479948,2355.0,2354.4,8.49458]
[1727949339745,4.24665,2354.8,2354.4,8.49449]
[1727949339948,4.24665,2354.8,2354.3,4.24744]
[1727949340159,4.24665,2354.8,2354.4,4.24736]
[1727949340320,1.33866491,2354.9,2354.4,4.24736]
[1727949340522,1.33866491,2354.9,2354.7,4.24675]
[1727949340724,6.02704013,2355.1,2354.7,4.24675]
[1727949340725,5.58483491,2355.1,2354.7,4.24675]
[1727949341475,5.58483491,2355.1,2354.4,0.424736]
[1727949341476,7.91430791,2355.2,2354.9,4.24643]
[1727949341628,7.91430791,2355.2,2354.9,8.49276]